fUST/lending_fUST_20250729
["ID","MTS","AMOUNT","RATE_DAILY","PERIOD"]
[375940157,1753791069963,-320.14813032,0.00021369,2]
[375940158,1753791069973,-182.449319,0.00021369,2]
[375940159,1753791069986,-182.449319,0.00021369,2]
[375940160,1753791069995,-409.64262386,0.00021369,2]
[375940161,1753791070009,-50.35737614,0.00021369,2]
[375940162,1753791070019,-1278.57,0.00021369,2]
[375940163,1753791070028,-1028.8,0.00021369,2]
[375940164,1753791070037,-589.11,0.00021369,2]
[375940165,1753791070047,-460.0,0.00021369,2]
[375940166,1753791070057,-534.3,0.00021369,2]
[375940167,1753791070067,-151.0,0.00021369,2]
[375940168,1753791070076,-151.0,0.00021369,2]
[375940169,1753791070086,-460.0,0.00021369,2]
[375940170,1753791070095,-151.0,0.00021369,2]
[375940171,1753791070104,-151.0,0.00021369,2]
[375940172,1753791070113,-3624.41,0.00021369,2]
[375940173,1753791070122,-1397.1,0.00021369,2]
[375940174,1753791070132,-655.07,0.00021369,2]
[375940175,1753791070141,-459.77952025,0.00021369,2]
[375940176,1753791070150,-811.6,0.00021369,2]
[375940177,1753791070159,-460.0,0.00021369,2]
[375940178,1753791070168,-511.0,0.00021369,2]
[375940179,1753791070176,-460.0,0.00021369,2]
[375940180,1753791070184,-460.0,0.00021369,2]
[375940181,1753791070193,-523.8,0.00021369,2]
[375940182,1753791070203,-460.0,0.00021369,2]
[375940183,1753791070212,-591.88,0.00021369,2]
[375940184,1753791070222,-580.07,0.00021369,2]
[375940185,1753791070231,-460.0,0.00021369,2]
[375940186,1753791070240,-460.0,0.00021369,2]
[375940187,1753791070249,-243.993039,0.00021369,2]
[375940188,1753791070258,-514.97,0.00021369,2]
[375940189,1753791070267,-460.0,0.00021369,2]
[375940190,1753791070276,-243.993039,0.00021369,2]
[375940191,1753791070286,-506.4,0.00021369,2]
[375940192,1753791070295,-460.0,0.00021369,2]
[375940193,1753791070304,-151.0,0.00021369,2]
[375940194,1753791070313,-460.0,0.00021369,2]
[375940195,1753791070323,-460.0,0.00021369,2]
[375940196,1753791070331,-1159.19,0.00021369,2]
[375940197,1753791070340,-460.0,0.00021369,2]
[375940198,1753791070349,-460.0,0.00021369,2]
[375940199,1753791070358,-460.0,0.00021369,2]
[375940200,1753791070367,-460.0,0.00021369,2]
[375940201,1753791070376,-460.0,0.00021369,2]
[375940202,1753791070386,-642.85,0.00021369,2]
[375940203,1753791070395,-460.0,0.00021369,2]
[375940204,1753791070405,-4526.60274434,0.00021369,2]
[375940205,1753791070417,-3143.90725566,0.00021369,2]
[375940206,1753791070428,-460.0,0.00021369,2]
[375940207,1753791070437,-649.26168867,0.00021369,2]
[375940208,1753791070496,-0.1459356,0.00021369,2]
[375940213,1753791559531,-1217.4793085,0.000189,2]
[375940216,1753791788278,811.65287233,0.000189,2]
[375940217,1753791802885,68282.93846378,0.00018,2]
[375940221,1753791962951,437.858849,0.00013699,2]
[375940228,1753792090115,541.10191489,0.000189,2]
[375940230,1753792096639,302.75782099,0.000189,2]
[375940301,1753792237564,-387.45004,0.00018977,2]
[375940302,1753792237576,-803.79831121,0.00018977,2]
[375940310,1753792238797,-8.75164879,0.00018977,2]
[375940311,1753792238806,-300.0,0.00018977,2]
[375940312,1753792238816,-300.0,0.00018977,2]
[375940313,1753792238825,-1200.0,0.00018977,2]
[375940314,1753792238834,-18461.7121674,0.00018978,2]
[375940315,1753792238846,-8578.04858597,0.00018978,2]
[375940316,1753792238905,-25406.70132249,0.00018978,2]
[375940317,1753792238915,-302.75782099,0.00019089,2]
[375940318,1753792238925,-273.6,0.00019168,3]
[375940319,1753792238934,-820.84,0.00019168,3]
[375940320,1753792238944,-460.0,0.00019178,2]
[375940321,1753792238953,-460.0,0.00019178,2]
[375940322,1753792238962,-425.83894147,0.00019178,2]
[375940323,1753792238972,-460.0,0.00019178,2]
[375940324,1753792238981,-460.0,0.00019178,2]
[375940325,1753792238992,-460.0,0.00019178,2]
[375940326,1753792239001,-460.0,0.00019178,2]
[375940327,1753792239010,-460.0,0.00019178,2]
[375940328,1753792239020,-460.0,0.00019178,2]
[375940329,1753792239029,-460.0,0.00019178,2]
[375940330,1753792239038,-464.02397835,0.00019178,2]
[375940331,1753792239047,-460.0,0.00019178,2]
[375940332,1753792239057,-460.0,0.00019178,2]
[375940333,1753792239066,-460.0,0.00019178,2]
[375940334,1753792239075,-464.85903207,0.00019178,2]
[375940335,1753792239085,-460.0,0.00019178,2]
[375940336,1753792239094,-460.0,0.00019178,2]
[375940337,1753792239104,-460.0,0.00019178,2]
[375940338,1753792239113,-460.0,0.00019178,2]
[375940339,1753792239122,-460.0,0.00019178,2]
[375940340,1753792239131,-460.0,0.00019178,2]
[375940341,1753792239143,-460.0,0.00019178,2]
[375940342,1753792239160,-460.0,0.00019178,2]
[375940343,1753792239170,-460.0,0.00019178,2]
[375940344,1753792239180,-460.0,0.00019178,2]
[375940345,1753792239189,-447.58239685,0.00019178,2]
[375940346,1753792239199,-460.0,0.00019178,2]
[375940347,1753792239209,-460.0,0.00019178,2]
[375940348,1753792239220,-464.86997175,0.00019178,2]
[375940349,1753792239229,-544.90644396,0.00019178,2]
[375940350,1753792239239,-460.0,0.00019178,2]
[375940351,1753792239248,-460.0,0.00019178,2]
[375940352,1753792239260,-460.0,0.00019178,2]
[375940353,1753792239270,-460.0,0.00019178,2]
[375940354,1753792239279,-460.0,0.00019178,2]
[375940355,1753792239290,-158.62398829,0.00019178,2]
[375940356,1753792239299,-461.59118345,0.00019178,2]
[375940357,1753792239309,-460.0,0.00019178,2]
[375940358,1753792239318,-460.0,0.00019178,2]
[375940359,1753792239328,-460.0,0.00019178,2]
[375940360,1753792239338,-460.0,0.00019178,2]
[375940361,1753792239349,-462.49,0.00019178,2]
[375940362,1753792239360,-710.86,0.00019178,2]
[375940363,1753792239369,-460.0,0.00019178,2]
[375940364,1753792239379,-461.50422658,0.00019178,2]
[375940365,1753792239389,-460.0,0.00019178,2]
[375940366,1753792239399,-2237.79,0.00019178,2]
[375940367,1753792239408,-460.0,0.00019178,2]
[375940368,1753792239417,-460.0,0.00019178,2]
[375940369,1753792239428,-460.0,0.00019178,2]
[375940370,1753792239437,-603.61216703,0.00019178,2]
[375940371,1753792239446,-460.0,0.00019178,2]
[375940372,1753792239455,-460.0,0.00019178,2]
[375940373,1753792239465,-460.0,0.00019178,2]
[375940374,1753792239474,-1013.93,0.00019178,2]
[375940375,1753792239483,-460.0,0.00019178,2]
[375940376,1753792239493,-460.0,0.00019178,2]
[375940377,1753792239502,-460.0,0.00019178,2]
[375940378,1753792239512,-460.0,0.00019178,2]
[375940379,1753792239522,-460.0,0.00019178,2]
[375940380,1753792239531,-460.0,0.00019178,2]
[375940381,1753792239540,-460.0,0.00019178,2]
[375940382,1753792239550,-460.0,0.00019178,2]
[375940383,1753792239559,-460.0,0.00019178,2]
[375940384,1753792239569,-460.0,0.00019178,2]
[375940385,1753792239578,-281.06838245,0.00019178,2]
[375940386,1753792239588,-483.17,0.00019178,2]
[375940387,1753792239597,-460.0,0.00019178,2]
[375940388,1753792239608,-461.94376967,0.00019178,2]
[375940389,1753792239617,-460.0,0.00019178,2]
[375940390,1753792239627,-460.0,0.00019178,2]
[375940391,1753792239637,-460.0,0.00019178,2]
[375940392,1753792239646,-460.0,0.00019178,2]
[375940393,1753792239656,-460.0,0.00019178,2]
[375940394,1753792239666,-460.0,0.00019178,2]
[375940395,1753792239676,-460.0,0.00019178,2]
[375940396,1753792239685,-460.0,0.00019178,2]
[375940397,1753792239695,-803.84,0.00019178,2]
[375940398,1753792239704,-460.0,0.00019178,2]
[375940399,1753792239715,-460.0,0.00019178,2]
[375940400,1753792239724,-460.0,0.00019178,2]
[375940401,1753792239733,-460.0,0.00019178,2]
[375940402,1753792239742,-460.0,0.00019178,2]
[375940403,1753792239752,-460.0,0.00019178,2]
[375940404,1753792239761,-462.09,0.00019178,2]
[375940405,1753792239771,-460.0,0.00019178,2]
[375940406,1753792239780,-460.0,0.00019178,2]
[375940407,1753792239789,-460.0,0.00019178,2]
[375940408,1753792239799,-911.83,0.00019178,2]
[375940409,1753792239808,-460.0,0.00019178,2]
[375940410,1753792239817,-460.0,0.00019178,2]
[375940411,1753792239827,-460.0,0.00019178,2]
[375940412,1753792239837,-460.0,0.00019178,2]
[375940413,1753792239846,-460.0,0.00019178,2]
[375940414,1753792239856,-460.0,0.00019178,2]
[375940415,1753792239866,-460.0,0.00019178,2]
[375940416,1753792239875,-422.97409889,0.00019178,2]
[375940417,1753792239884,-460.0,0.00019178,2]
[375940418,1753792239893,-460.0,0.00019178,2]
[375940419,1753792239902,-460.0,0.00019178,2]
[375940420,1753792239912,-460.0,0.00019178,2]
[375940421,1753792239921,-460.0,0.00019178,2]
[375940422,1753792239930,-460.0,0.00019178,2]
[375940423,1753792239940,-458.6307424,0.00019178,2]
[375940424,1753792239949,-460.0,0.00019178,2]
[375940425,1753792239960,-265.73440307,0.00019178,2]
[375940426,1753792239971,-460.0,0.00019178,2]
[375940427,1753792239981,-340.45669823,0.00019178,2]
[375940428,1753792239991,-462.0,0.00019178,2]
[375940429,1753792240002,-460.0,0.00019178,2]
[375940430,1753792240012,-460.0,0.00019178,2]
[375940431,1753792240022,-460.0,0.00019178,2]
[375940432,1753792240031,-460.0,0.00019178,2]
[375940433,1753792240041,-460.0,0.00019178,2]
[375940435,1753792240051,-460.0,0.00019178,2]
[375940436,1753792240061,-460.0,0.00019178,2]
[375940437,1753792240071,-460.0,0.00019178,2]
[375940438,1753792240081,-460.0,0.00019178,2]
[375940439,1753792240091,-460.0,0.00019178,2]
[375940440,1753792240101,-460.0,0.00019178,2]
[375940441,1753792240110,-460.0,0.00019178,2]
[375940442,1753792240120,-460.0,0.00019178,2]
[375940443,1753792240130,-460.0,0.00019178,2]
[375940444,1753792240139,-460.0,0.00019178,2]
[375940445,1753792240149,-460.0,0.00019178,2]
[375940446,1753792240159,-460.0,0.00019178,2]
[375940447,1753792240168,-460.0,0.00019178,2]
[375940448,1753792240178,-460.0,0.00019178,2]
[375940449,1753792240188,-460.0,0.00019178,2]
[375940450,1753792240198,-460.0,0.00019178,2]
[375940451,1753792240207,-460.0,0.00019178,2]
[375940452,1753792240217,-460.0,0.00019178,2]
[375940453,1753792240227,-460.0,0.00019178,2]
[375940454,1753792240236,-441.57242035,0.00019178,2]
[375940455,1753792240246,-460.0,0.00019178,2]
[375940456,1753792240255,-460.0,0.00019178,2]
[375940457,1753792240264,-460.0,0.00019178,2]
[375940458,1753792240274,-460.0,0.00019178,2]
[375940459,1753792240284,-460.0,0.00019178,2]
[375940460,1753792240293,-460.0,0.00019178,2]
[375940461,1753792240303,-460.0,0.00019178,2]
[375940462,1753792240313,-460.0,0.00019178,2]
[375940463,1753792240322,-460.0,0.00019178,2]
[375940464,1753792240333,-6994.68,0.00019178,2]
[375940465,1753792240344,-460.0,0.00019178,2]
[375940466,1753792240359,-460.0,0.00019178,2]
[375940467,1753792240369,-561.76,0.00019178,2]
[375940468,1753792240379,-460.0,0.00019178,2]
[375940469,1753792240389,-460.0,0.00019178,2]
[375940470,1753792240398,-460.0,0.00019178,2]
[375940471,1753792240409,-681.2,0.00019178,2]
[375940472,1753792240418,-460.0,0.00019178,2]
[375940473,1753792240430,-460.0,0.00019178,2]
[375940474,1753792240440,-460.0,0.00019178,2]
[375940475,1753792240450,-460.0,0.00019178,2]
[375940476,1753792240461,-460.0,0.00019178,2]
[375940477,1753792240471,-544.84,0.00019178,2]
[375940478,1753792240481,-460.0,0.00019178,2]
[375940479,1753792240490,-460.0,0.00019178,2]
[375940480,1753792240500,-909.74,0.00019178,2]
[375940481,1753792240510,-2778.81,0.00019178,2]
[375940482,1753792240522,-3569.21,0.00019178,2]
[375940483,1753792240531,-460.0,0.00019178,2]
[375940484,1753792240542,-681.08,0.00019178,2]
[375940485,1753792240552,-460.0,0.00019178,2]
[375940486,1753792240561,-460.0,0.00019178,2]
[375940487,1753792240571,-460.0,0.00019178,2]
[375940488,1753792240580,-460.0,0.00019178,2]
[375940490,1753792240589,-2567.29,0.00019178,2]
[375940492,1753792240598,-460.0,0.00019178,2]
[375940493,1753792240608,-1518.87,0.00019178,2]
[375940494,1753792240618,-460.0,0.00019178,2]
[375940495,1753792240629,-460.0,0.00019178,2]
[375940496,1753792240639,-460.0,0.00019178,2]
[375940498,1753792240649,-460.0,0.00019178,2]
[375940499,1753792240659,-742.91,0.00019178,2]
[375940500,1753792240668,-460.0,0.00019178,2]
[375940501,1753792240678,-460.0,0.00019178,2]
[375940502,1753792240689,-460.0,0.00019178,2]
[375940503,1753792240699,-460.0,0.00019178,2]
[375940504,1753792240709,-460.0,0.00019178,2]
[375940505,1753792240720,-1295.22,0.00019178,2]
[375940506,1753792240730,-640.94,0.00019178,2]
[375940507,1753792240739,-460.0,0.00019178,2]
[375940508,1753792240748,-460.0,0.00019178,2]
[375940509,1753792240760,-460.0,0.00019178,2]
[375940510,1753792240769,-1815.67,0.00019178,2]
[375940511,1753792240778,-460.0,0.00019178,2]
[375940512,1753792240789,-460.0,0.00019178,2]
[375940513,1753792240798,-460.0,0.00019178,2]
[375940515,1753792240808,-460.0,0.00019178,2]
[375940516,1753792240817,-460.0,0.00019178,2]
[375940517,1753792240827,-460.0,0.00019178,2]
[375940518,1753792240837,-853.51,0.00019178,2]
[375940519,1753792240846,-973.49,0.00019178,2]
[375940520,1753792240856,-460.0,0.00019178,2]
[375940521,1753792240866,-460.0,0.00019178,2]
[375940522,1753792240877,-466.73039612,0.00019178,2]
[375940523,1753792240886,-3044.62,0.00019178,2]
[375940524,1753792240896,-604.12518216,0.00019178,2]
[375940525,1753792240906,-460.0,0.00019178,2]
[375940526,1753792240916,-460.0,0.00019178,2]
[375940527,1753792240926,-637.76,0.00019178,2]
[375940528,1753792240936,-460.0,0.00019178,2]
[375940529,1753792240945,-481.16,0.00019178,2]
[375940530,1753792240956,-460.0,0.00019178,2]
[375940531,1753792240966,-460.0,0.00019178,2]
[375940532,1753792240975,-460.0,0.00019178,2]
[375940533,1753792240985,-460.0,0.00019178,2]
[375940534,1753792240994,-460.0,0.00019178,2]
[375940535,1753792241004,-460.0,0.00019178,2]
[375940536,1753792241014,-460.0,0.00019178,2]
[375940537,1753792241023,-460.0,0.00019178,2]
[375940538,1753792241034,-460.0,0.00019178,2]
[375940539,1753792241043,-2207.39,0.00019178,2]
[375940540,1753792241052,-460.0,0.00019178,2]
[375940541,1753792241062,-460.0,0.00019178,2]
[375940542,1753792241071,-460.0,0.00019178,2]
[375940543,1753792241081,-460.0,0.00019178,2]
[375940544,1753792241090,-2098.02,0.00019178,2]
[375940545,1753792241099,-460.0,0.00019178,2]
[375940546,1753792241109,-585.32,0.00019178,2]
[375940547,1753792241118,-460.0,0.00019178,2]
[375940548,1753792241127,-919.34,0.00019178,2]
[375940549,1753792241137,-460.0,0.00019178,2]
[375940550,1753792241146,-460.0,0.00019178,2]
[375940551,1753792241155,-460.0,0.00019178,2]
[375940552,1753792241164,-1859.18,0.00019178,2]
[375940553,1753792241174,-2506.33,0.00019178,2]
[375940554,1753792241183,-887.89,0.00019178,2]
[375940555,1753792241192,-460.0,0.00019178,2]
[375940556,1753792241202,-631.52,0.00019178,2]
[375940557,1753792241212,-460.0,0.00019178,2]
[375940558,1753792241222,-730.92,0.00019178,2]
[375940559,1753792241231,-460.0,0.00019178,2]
[375940560,1753792241241,-460.0,0.00019178,2]
[375940561,1753792241250,-460.0,0.00019178,2]
[375940562,1753792241259,-463.56075331,0.00019178,2]
[375940563,1753792241268,-460.0,0.00019178,2]
[375940564,1753792241277,-460.0,0.00019178,2]
[375940565,1753792241286,-460.0,0.00019178,2]
[375940566,1753792241295,-1540.4,0.00019178,2]
[375940567,1753792241305,-460.0,0.00019178,2]
[375940568,1753792241314,-460.0,0.00019178,2]
[375940569,1753792241324,-460.0,0.00019178,2]
[375940570,1753792241333,-460.0,0.00019178,2]
[375940571,1753792241343,-1099.99,0.00019178,2]
[375940572,1753792241354,-749.18,0.00019178,2]
[375940573,1753792241363,-664.57,0.00019178,2]
[375940574,1753792241372,-461.55629779,0.00019178,2]
[375940575,1753792241382,-2875.54,0.00019178,2]
[375940576,1753792241394,-460.0,0.00019178,2]
[375940577,1753792241404,-5113.68,0.00019178,2]
[375940578,1753792241413,-900.23,0.00019178,2]
[375940579,1753792241422,-254.26108596,0.00019178,2]
[375940580,1753792241432,-460.0,0.00019178,2]
[375940581,1753792241443,-460.0,0.00019178,2]
[375940582,1753792241452,-460.0,0.00019178,2]
[375940583,1753792241463,-460.0,0.00019178,2]
[375940584,1753792241473,-460.0,0.00019178,2]
[375940585,1753792241482,-460.0,0.00019178,2]
[375940586,1753792241493,-460.0,0.00019178,2]
[375940587,1753792241502,-461.28,0.00019178,2]
[375940588,1753792241511,-460.0,0.00019178,2]
[375940589,1753792241521,-460.0,0.00019178,2]
[375940590,1753792241531,-460.0,0.00019178,2]
[375940591,1753792241541,-988.2,0.00019178,2]
[375940592,1753792241551,-460.0,0.00019178,2]
[375940593,1753792241561,-462.76788314,0.00019178,2]
[375940594,1753792241572,-460.0,0.00019178,2]
[375940595,1753792241582,-460.0,0.00019178,2]
[375940596,1753792241591,-460.0,0.00019178,2]
[375940597,1753792241600,-696.27,0.00019178,2]
[375940598,1753792241610,-460.0,0.00019178,2]
[375940599,1753792241619,-394.554257,0.00019178,2]
[375940600,1753792241628,-500.0,0.00019178,2]
[375940601,1753792241637,-666.0,0.00019178,2]
[375940602,1753792241647,-302.75782099,0.00019278,2]
[375940603,1753792241656,-243.24341418,0.00019352,2]
[375940604,1753792241665,-1080.77522708,0.00019352,2]
[375940605,1753792241674,-200.0,0.00019357,15]
[375940606,1753792241685,-200.0,0.00019357,15]
[375940607,1753792241693,-200.0,0.00019357,15]
[375940608,1753792241701,-200.0,0.00019357,15]
[375940609,1753792241709,-1000.0,0.00019424,2]
[375940610,1753792241718,-1000.0,0.00019424,2]
[375940611,1753792241726,-1000.0,0.00019424,2]
[375940612,1753792241736,-1000.0,0.00019424,2]
[375940613,1753792241747,-1000.0,0.00019424,2]
[375940614,1753792241756,-1000.0,0.00019424,2]
[375940615,1753792241765,-1089.6,0.00019424,2]
[375940616,1753792241775,-460.0,0.00019452,2]
[375940617,1753792241784,-460.0,0.00019452,2]
[375940618,1753792241793,-460.0,0.00019452,2]
[375940619,1753792241802,-460.0,0.00019452,2]
[375940620,1753792241812,-463.85762846,0.00019452,2]
[375940621,1753792241822,-460.0,0.00019452,2]
[375940622,1753792241831,-460.0,0.00019452,2]
[375940623,1753792241841,-460.0,0.00019452,2]
[375940624,1753792241851,-460.0,0.00019452,2]
[375940625,1753792241860,-460.0,0.00019452,2]
[375940626,1753792241870,-460.0,0.00019452,2]
[375940627,1753792241879,-465.8153443,0.00019452,2]
[375940628,1753792241888,-460.0,0.00019452,2]
[375940629,1753792241897,-460.0,0.00019452,2]
[375940630,1753792241908,-460.0,0.00019452,2]
[375940631,1753792241918,-460.0,0.00019452,2]
[375940632,1753792241927,-460.0,0.00019452,2]
[375940633,1753792241937,-598.06330181,0.00019452,2]
[375940634,1753792241946,-172.15497156,0.00019452,2]
[375940635,1753792241957,-460.0,0.00019452,2]
[375940636,1753792241967,-462.13896883,0.00019452,2]
[375940637,1753792241977,-460.0,0.00019452,2]
[375940638,1753792241986,-462.49,0.00019452,2]
[375940639,1753792241995,-710.86,0.00019452,2]
[375940640,1753792242004,-460.0,0.00019452,2]
[375940641,1753792242014,-2237.79,0.00019452,2]
[375940642,1753792242023,-460.0,0.00019452,2]
[375940643,1753792242033,-460.0,0.00019452,2]
[375940644,1753792242042,-460.0,0.00019452,2]
[375940645,1753792242051,-1013.93,0.00019452,2]
[375940646,1753792242060,-460.0,0.00019452,2]
[375940647,1753792242070,-460.0,0.00019452,2]
[375940648,1753792242079,-460.0,0.00019452,2]
[375940649,1753792242088,-460.0,0.00019452,2]
[375940650,1753792242096,-483.17,0.00019452,2]
[375940651,1753792242104,-460.0,0.00019452,2]
[375940652,1753792242113,-460.0,0.00019452,2]
[375940653,1753792242121,-460.0,0.00019452,2]
[375940654,1753792242130,-460.0,0.00019452,2]
[375940655,1753792242139,-460.0,0.00019452,2]
[375940656,1753792242149,-460.0,0.00019452,2]
[375940657,1753792242158,-803.84,0.00019452,2]
[375940658,1753792242167,-460.0,0.00019452,2]
[375940659,1753792242177,-460.0,0.00019452,2]
[375940660,1753792242187,-460.0,0.00019452,2]
[375940661,1753792242196,-460.0,0.00019452,2]
[375940662,1753792242206,-460.0,0.00019452,2]
[375940663,1753792242215,-911.83,0.00019452,2]
[375940664,1753792242224,-460.0,0.00019452,2]
[375940665,1753792242233,-460.0,0.00019452,2]
[375940666,1753792242243,-460.0,0.00019452,2]
[375940667,1753792242252,-460.0,0.00019452,2]
[375940668,1753792242262,-460.0,0.00019452,2]
[375940669,1753792242271,-460.0,0.00019452,2]
[375940670,1753792242281,-460.0,0.00019452,2]
[375940671,1753792242290,-460.0,0.00019452,2]
[375940672,1753792242299,-460.0,0.00019452,2]
[375940673,1753792242456,-460.0,0.00019452,2]
[375940674,1753792242466,-460.0,0.00019452,2]
[375940675,1753792242476,-247.71050629,0.00019452,2]
[375940676,1753792242485,-460.0,0.00019452,2]
[375940677,1753792242495,-460.0,0.00019452,2]
[375940678,1753792242505,-460.0,0.00019452,2]
[375940679,1753792242515,-460.0,0.00019452,2]
[375940680,1753792242526,-460.0,0.00019452,2]
[375940681,1753792242537,-460.0,0.00019452,2]
[375940682,1753792242548,-508.95244725,0.00019452,2]
[375940683,1753792242559,-460.0,0.00019452,2]
[375940684,1753792242568,-460.0,0.00019452,2]
[375940685,1753792242578,-460.0,0.00019452,2]
[375940686,1753792242587,-460.0,0.00019452,2]
[375940687,1753792242596,-460.0,0.00019452,2]
[375940688,1753792242605,-460.0,0.00019452,2]
[375940689,1753792242614,-460.0,0.00019452,2]
[375940690,1753792242624,-460.0,0.00019452,2]
[375940691,1753792242633,-460.0,0.00019452,2]
[375940692,1753792242643,-460.0,0.00019452,2]
[375940693,1753792242651,-460.0,0.00019452,2]
[375940694,1753792242661,-460.0,0.00019452,2]
[375940695,1753792242670,-460.0,0.00019452,2]
[375940696,1753792242681,-460.0,0.00019452,2]
[375940697,1753792242690,-480.97745307,0.00019452,2]
[375940698,1753792242699,-460.0,0.00019452,2]
[375940699,1753792242708,-460.0,0.00019452,2]
[375940700,1753792242718,-460.0,0.00019452,2]
[375940701,1753792242727,-6994.68,0.00019452,2]
[375940702,1753792242736,-460.0,0.00019452,2]
[375940703,1753792242745,-460.0,0.00019452,2]
[375940704,1753792242755,-561.76,0.00019452,2]
[375940705,1753792242764,-460.0,0.00019452,2]
[375940706,1753792242774,-460.0,0.00019452,2]
[375940707,1753792242784,-681.2,0.00019452,2]
[375940708,1753792242794,-460.0,0.00019452,2]
[375940709,1753792242804,-460.0,0.00019452,2]
[375940710,1753792242814,-428.43032593,0.00019452,2]
[375940711,1753792242823,-460.0,0.00019452,2]
[375940712,1753792242833,-460.0,0.00019452,2]
[375940713,1753792242842,-544.84,0.00019452,2]
[375940714,1753792242851,-460.0,0.00019452,2]
[375940715,1753792242861,-460.0,0.00019452,2]
[375940716,1753792242870,-909.74,0.00019452,2]
[375940717,1753792242879,-2778.81,0.00019452,2]
[375940718,1753792242889,-3569.21,0.00019452,2]
[375940719,1753792242898,-681.08,0.00019452,2]
[375940720,1753792242907,-460.0,0.00019452,2]
[375940721,1753792242917,-460.0,0.00019452,2]
[375940722,1753792242926,-460.0,0.00019452,2]
[375940723,1753792242935,-2567.29,0.00019452,2]
[375940724,1753792242944,-251.1512223,0.00019452,2]
[375940725,1753792242953,-1518.87,0.00019452,2]
[375940726,1753792242961,-460.0,0.00019452,2]
[375940727,1753792242972,-460.0,0.00019452,2]
[375940728,1753792242981,-460.0,0.00019452,2]
[375940729,1753792242990,-742.91,0.00019452,2]
[375940730,1753792243000,-460.0,0.00019452,2]
[375940731,1753792243009,-460.0,0.00019452,2]
[375940732,1753792243018,-460.0,0.00019452,2]
[375940733,1753792243028,-1295.22,0.00019452,2]
[375940734,1753792243037,-640.94,0.00019452,2]
[375940735,1753792243046,-460.0,0.00019452,2]
[375940736,1753792243055,-460.0,0.00019452,2]
[375940737,1753792243065,-460.0,0.00019452,2]
[375940738,1753792243074,-1815.67,0.00019452,2]
[375940739,1753792243083,-511.40957941,0.00019452,2]
[375940740,1753792243094,-460.0,0.00019452,2]
[375940741,1753792243103,-460.0,0.00019452,2]
[375940742,1753792243113,-248.05026462,0.00019452,2]
[375940743,1753792243123,-474.12072006,0.00019452,2]
[375940744,1753792243133,-460.0,0.00019452,2]
[375940745,1753792243142,-853.51,0.00019452,2]
[375940746,1753792243153,-973.49,0.00019452,2]
[375940747,1753792243163,-460.0,0.00019452,2]
[375940748,1753792243173,-460.0,0.00019452,2]
[375940750,1753792243182,-3044.62,0.00019452,2]
[375940752,1753792243192,-569.61804562,0.00019452,2]
[375940754,1753792243202,-460.0,0.00019452,2]
[375940755,1753792243211,-637.76,0.00019452,2]
[375940756,1753792243222,-460.0,0.00019452,2]
[375940758,1753792243231,-481.16,0.00019452,2]